[Event "Late-Titled-Tuesday-Blitz-May-28-2024"]
[Site "Chess.com"]
[Date "2024.05.28"]
[Round "5"]
[White "amintabatabaei"]
[Black "Bryanl106"]
[Result "1-0"]
[WhiteElo "3050"]
[BlackElo "2698"]
[TimeControl "180+1"]
[EndTime "14:56:01 PDT"]
[Termination "amintabatabaei won by resignation"]

1. d4 {[%clk 0:03:00.9]} 1... Nf6 {[%clk 0:02:58.2]} 2. Nf3 {[%clk 0:02:59.2]}
2... g6 {[%clk 0:02:57.2]} 3. b3 {[%clk 0:02:54.2]} 3... Bg7 {[%clk 0:02:57.3]}
4. Bb2 {[%clk 0:02:54.4]} 4... O-O {[%clk 0:02:57.9]} 5. e3 {[%clk 0:02:54.7]}
5... d6 {[%clk 0:02:58.4]} 6. Be2 {[%clk 0:02:54.4]} 6... Nbd7 {[%clk
0:02:58.6]} 7. O-O {[%clk 0:02:54.8]} 7... Re8 {[%clk 0:02:58.1]} 8. c4 {[%clk
0:02:54.9]} 8... c6 {[%clk 0:02:58.6]} 9. Nc3 {[%clk 0:02:53.8]} 9... e5 {[%clk
0:02:58.4]} 10. b4 {[%clk 0:02:54.4]} 10... a5 {[%clk 0:02:56.2]} 11. b5 {[%clk
0:02:54.2]} 11... Qc7 {[%clk 0:02:56.3]} 12. a4 {[%clk 0:02:53.9]} 12... h6
{[%clk 0:02:52.3]} 13. Qb3 {[%clk 0:02:53.8]} 13... Nh7 {[%clk 0:02:51.5]} 14.
Rfd1 {[%clk 0:02:52.6]} 14... e4 {[%clk 0:02:50.5]} 15. Nd2 {[%clk 0:02:52.1]}
15... Ndf6 {[%clk 0:02:47.3]} 16. h3 {[%clk 0:02:29.3]} 16... h5 {[%clk
0:02:46.4]} 17. Rdc1 {[%clk 0:02:26.5]} 17... h4 {[%clk 0:02:45.8]} 18. Qd1
{[%clk 0:02:26.6]} 18... Ng5 {[%clk 0:02:45.7]} 19. Kh1 {[%clk 0:02:25.7]} 19...
Bf5 {[%clk 0:02:41.4]} 20. Qg1 {[%clk 0:02:25.7]} 20... Qd7 {[%clk 0:02:37.3]}
21. Qh2 {[%clk 0:02:25.7]} 21... Ne6 {[%clk 0:02:29.1]} 22. Nb3 {[%clk
0:02:18.2]} 22... g5 {[%clk 0:02:26.3]} 23. Ba3 {[%clk 0:02:17.7]} 23... Red8
{[%clk 0:02:19.1]} 24. Rd1 {[%clk 0:02:16.2]} 24... d5 {[%clk 0:02:05.7]} 25.
Rac1 {[%clk 0:02:15]} 25... Bf8 {[%clk 0:02:01.1]} 26. Bxf8 {[%clk 0:02:09.9]}
26... Nxf8 {[%clk 0:01:55.1]} 27. bxc6 {[%clk 0:01:55]} 27... bxc6 {[%clk
0:01:54.4]} 28. cxd5 {[%clk 0:01:55.7]} 28... Nxd5 {[%clk 0:01:48]} 29. Nxd5
{[%clk 0:01:55.9]} 29... cxd5 {[%clk 0:01:46.4]} 30. Bb5 {[%clk 0:01:55.1]}
30... Qe7 {[%clk 0:01:45.6]} 31. Rc7 {[%clk 0:01:49.7]} 31... Qf6 {[%clk
0:01:45.5]} 32. Rdc1 {[%clk 0:01:46.8]} 32... Ne6 {[%clk 0:01:45]} 33. R1c6
{[%clk 0:01:35.5]} 33... Qg7 {[%clk 0:01:45.1]} 34. Rb7 {[%clk 0:01:19]} 34...
g4 {[%clk 0:01:44.4]} 35. Qe5 {[%clk 0:00:39]} 35... Qxe5 {[%clk 0:01:42.8]} 36.
dxe5 {[%clk 0:00:39.9]} 36... gxh3 {[%clk 0:01:43.5]} 37. Nd4 {[%clk 0:00:40.1]}
37... hxg2+ {[%clk 0:01:37.3]} 38. Kxg2 {[%clk 0:00:40.3]} 38... Bg4 {[%clk
0:01:24.6]} 39. Rd6 {[%clk 0:00:37.3]} 39... Rxd6 {[%clk 0:01:05.1]} 40. exd6
{[%clk 0:00:38.2]} 40... Nxd4 {[%clk 0:01:05.5]} 41. exd4 {[%clk 0:00:39.1]}
41... Rd8 {[%clk 0:01:05.6]} 42. Rb6 {[%clk 0:00:32.3]} 42... Kg7 {[%clk
0:01:01.7]} 43. Ra6 {[%clk 0:00:25.5]} 43... Kf6 {[%clk 0:01:01.2]} 44. d7+
{[%clk 0:00:23.6]} 44... Ke7 {[%clk 0:01:01.4]} 45. Rxa5 {[%clk 0:00:24.1]}
45... Bxd7 {[%clk 0:01:01]} 46. Ra7 {[%clk 0:00:24.4]} 46... Kd6 {[%clk
0:00:59.1]} 47. Rxd7+ {[%clk 0:00:23.6]} 47... Rxd7 {[%clk 0:01:00]} 48. Bxd7
{[%clk 0:00:23.5]} 48... Kxd7 {[%clk 0:01:00.9]} 49. Kh3 {[%clk 0:00:24.2]}
49... Kc7 {[%clk 0:01:01.5]} 50. Kxh4 {[%clk 0:00:24.4]} 50... Kb6 {[%clk
0:01:02.4]} 51. Kg5 {[%clk 0:00:23.4]} 51... Ka5 {[%clk 0:01:01.6]} 52. Kf6
{[%clk 0:00:22.9]} 52... Kxa4 {[%clk 0:01:01.7]} 53. Kxf7 {[%clk 0:00:18.4]}
53... Kb3 {[%clk 0:00:45.4]} 54. Ke6 {[%clk 0:00:18]} 54... Kc3 {[%clk
0:00:40.9]} 55. Kxd5 {[%clk 0:00:17.6]} 55... Kd3 {[%clk 0:00:41.8]} 56. Ke5
{[%clk 0:00:17.5]} 56... Ke2 {[%clk 0:00:42.7]} 57. Kxe4 {[%clk 0:00:17.1]}
57... Kxf2 {[%clk 0:00:43.6]} 58. d5 {[%clk 0:00:17.4]} 1-0

[Event "Late-Titled-Tuesday-Blitz-May-28-2024"]
[Site "Chess.com"]
[Date "2024.05.28"]
[Round "5"]
[White "Mariia89"]
[Black "AsaHoffmann"]
[Result "1-0"]
[WhiteElo "2209"]
[BlackElo "2306"]
[TimeControl "180+1"]
[EndTime "14:56:02 PDT"]
[Termination "Mariia89 won by resignation"]

1. d4 {[%clk 0:02:59.7]} 1... Nf6 {[%clk 0:02:58.7]} 2. Nf3 {[%clk 0:03:00.2]}
2... d6 {[%clk 0:02:58.3]} 3. c4 {[%clk 0:02:59.9]} 3... c6 {[%clk 0:02:58]} 4.
Nc3 {[%clk 0:03:00.4]} 4... Bf5 {[%clk 0:02:57.3]} 5. Nh4 {[%clk 0:02:58.6]}
5... Bd7 {[%clk 0:02:56.6]} 6. e4 {[%clk 0:02:57.8]} 6... e5 {[%clk 0:02:56.3]}
7. Nf3 {[%clk 0:02:57.3]} 7... Qc7 {[%clk 0:02:55.5]} 8. Be2 {[%clk 0:02:57.1]}
8... Bg4 {[%clk 0:02:55.1]} 9. O-O {[%clk 0:02:56]} 9... Nbd7 {[%clk 0:02:54.9]}
10. h3 {[%clk 0:02:54.4]} 10... Bh5 {[%clk 0:02:54.5]} 11. Bg5 {[%clk
0:02:45.1]} 11... Be7 {[%clk 0:02:53.9]} 12. Re1 {[%clk 0:02:35.1]} 12... O-O
{[%clk 0:02:53.2]} 13. Qd2 {[%clk 0:02:01.3]} 13... Rfe8 {[%clk 0:02:51.5]} 14.
Rad1 {[%clk 0:01:57.5]} 14... a6 {[%clk 0:02:45.7]} 15. Be3 {[%clk 0:01:31]}
15... b5 {[%clk 0:02:44.9]} 16. b3 {[%clk 0:01:29.7]} 16... b4 {[%clk
0:02:44.6]} 17. Na4 {[%clk 0:01:29.3]} 17... Nxe4 {[%clk 0:02:43.3]} 18. Qc2
{[%clk 0:01:28.5]} 18... Nef6 {[%clk 0:02:39.2]} 19. dxe5 {[%clk 0:01:19.3]}
19... dxe5 {[%clk 0:02:38.3]} 20. c5 {[%clk 0:01:14.8]} 20... a5 {[%clk
0:02:34.3]} 21. Nd2 {[%clk 0:00:50.8]} 21... Bg6 {[%clk 0:02:33.3]} 22. Qc1
{[%clk 0:00:46.6]} 22... Nd5 {[%clk 0:02:32.4]} 23. Nc4 {[%clk 0:00:45.9]} 23...
Nxe3 {[%clk 0:02:29.2]} 24. Qxe3 {[%clk 0:00:45.7]} 24... h6 {[%clk 0:02:25.2]}
25. Nd6 {[%clk 0:00:38.3]} 25... Red8 {[%clk 0:02:15.8]} 26. Bc4 {[%clk
0:00:38.2]} 26... Bg5 {[%clk 0:02:13.2]} 27. Qf3 {[%clk 0:00:33.3]} 27... Nxc5
{[%clk 0:02:09]} 28. Nxf7 {[%clk 0:00:21.3]} 28... Bxf7 {[%clk 0:02:05.6]} 29.
Nxc5 {[%clk 0:00:19.2]} 29... Bxc4 {[%clk 0:02:02.6]} 30. bxc4 {[%clk
0:00:19.8]} 30... Re8 {[%clk 0:01:52.8]} 31. Ne4 {[%clk 0:00:18.9]} 31... Qe7
{[%clk 0:01:48.8]} 32. c5 {[%clk 0:00:18.6]} 32... Rad8 {[%clk 0:01:48]} 33. Nd6
{[%clk 0:00:18.4]} 33... Rf8 {[%clk 0:01:48.1]} 34. Qb3+ {[%clk 0:00:18.9]}
34... Kh8 {[%clk 0:01:46.4]} 35. Re2 {[%clk 0:00:17.7]} 35... e4 {[%clk
0:01:45.2]} 36. Rde1 {[%clk 0:00:17.4]} 36... e3 {[%clk 0:01:44.4]} 37. fxe3
{[%clk 0:00:17]} 37... Qf6 {[%clk 0:01:44.1]} 38. Qc4 {[%clk 0:00:14.2]} 38...
Rxd6 {[%clk 0:01:43.6]} 39. cxd6 {[%clk 0:00:14.1]} 39... Qxd6 {[%clk
0:01:43.3]} 40. e4 {[%clk 0:00:14.1]} 40... Rd8 {[%clk 0:01:41]} 41. e5 {[%clk
0:00:14.3]} 41... Qd4+ {[%clk 0:01:39.6]} 42. Qxd4 {[%clk 0:00:14]} 42... Rxd4
{[%clk 0:01:39.4]} 43. Kh2 {[%clk 0:00:14.9]} 43... c5 {[%clk 0:01:39.4]} 44. e6
{[%clk 0:00:14.9]} 44... Rd8 {[%clk 0:01:39]} 45. e7 {[%clk 0:00:15.2]} 45...
Re8 {[%clk 0:01:39.2]} 46. Kg3 {[%clk 0:00:15.3]} 46... c4 {[%clk 0:01:39.3]}
47. h4 {[%clk 0:00:15.1]} 47... Bf6 {[%clk 0:01:38.8]} 48. Kg4 {[%clk
0:00:14.6]} 48... c3 {[%clk 0:01:38.9]} 49. Kf5 {[%clk 0:00:14.5]} 49... a4
{[%clk 0:01:38.6]} 50. g4 {[%clk 0:00:10.8]} 50... b3 {[%clk 0:01:37.1]} 51.
axb3 {[%clk 0:00:10.8]} 51... axb3 {[%clk 0:01:37]} 52. g5 {[%clk 0:00:11.7]}
52... Bd4 {[%clk 0:01:34]} 53. Rd1 {[%clk 0:00:09.9]} 53... Bc5 {[%clk
0:01:32.8]} 54. Rd8 {[%clk 0:00:10.2]} 54... g6+ {[%clk 0:01:27.6]} 55. Kxg6
{[%clk 0:00:09.6]} 55... Rg8+ {[%clk 0:01:17.5]} 56. Rxg8+ {[%clk 0:00:09.5]}
56... Kxg8 {[%clk 0:01:17.3]} 57. e8=Q+ {[%clk 0:00:10.4]} 57... Bf8 {[%clk
0:01:16.9]} 58. Rf2 {[%clk 0:00:10.2]} 1-0

[Event "Late-Titled-Tuesday-Blitz-May-28-2024"]
[Site "Chess.com"]
[Date "2024.05.28"]
[Round "5"]
[White "h4parah5"]
[Black "djano"]
[Result "1-0"]
[WhiteElo "2973"]
[BlackElo "2608"]
[TimeControl "180+1"]
[EndTime "14:56:03 PDT"]
[Termination "h4parah5 won by resignation"]

1. Nf3 {[%clk 0:03:00.9]} 1... c5 {[%clk 0:02:59.6]} 2. e4 {[%clk 0:03:00.5]}
2... g6 {[%clk 0:02:59.5]} 3. d4 {[%clk 0:03:00.1]} 3... cxd4 {[%clk 0:03:00.4]}
4. Nxd4 {[%clk 0:03:00.6]} 4... Nf6 {[%clk 0:03:00.2]} 5. Nc3 {[%clk 0:02:56.9]}
5... Nc6 {[%clk 0:03:00.6]} 6. Nxc6 {[%clk 0:02:51.8]} 6... dxc6 {[%clk
0:03:01.5]} 7. Qxd8+ {[%clk 0:02:49.5]} 7... Kxd8 {[%clk 0:03:02.4]} 8. Bf4
{[%clk 0:02:45.6]} 8... Ke8 {[%clk 0:02:56.1]} 9. Be2 {[%clk 0:02:41.7]} 9...
Nd7 {[%clk 0:02:47.3]} 10. Bg4 {[%clk 0:02:34.4]} 10... Bg7 {[%clk 0:02:42.2]}
11. O-O-O {[%clk 0:02:33]} 11... Nc5 {[%clk 0:02:41.9]} 12. Bxc8 {[%clk
0:02:27.2]} 12... Rxc8 {[%clk 0:02:41]} 13. Be3 {[%clk 0:02:26.9]} 13... Ne6
{[%clk 0:02:30.2]} 14. Rd3 {[%clk 0:02:18.2]} 14... h5 {[%clk 0:02:09.1]} 15. f4
{[%clk 0:02:14.9]} 15... Bh6 {[%clk 0:01:59]} 16. g3 {[%clk 0:02:11.8]} 16... h4
{[%clk 0:01:59.3]} 17. Kb1 {[%clk 0:02:11.2]} 17... b6 {[%clk 0:01:50.9]} 18.
Rhd1 {[%clk 0:02:08.7]} 18... hxg3 {[%clk 0:01:46.2]} 19. hxg3 {[%clk
0:02:07.3]} 19... Rd8 {[%clk 0:01:43.8]} 20. Rxd8+ {[%clk 0:02:03.1]} 20... Nxd8
{[%clk 0:01:43.7]} 21. a4 {[%clk 0:02:03.5]} 21... Bg7 {[%clk 0:01:38.9]} 22. e5
{[%clk 0:02:01.2]} 22... Rh3 {[%clk 0:01:34.4]} 23. Ne4 {[%clk 0:01:59.9]} 23...
Ne6 {[%clk 0:01:24.9]} 24. a5 {[%clk 0:01:56.3]} 24... bxa5 {[%clk 0:01:07.7]}
25. Bxa7 {[%clk 0:01:54.8]} 25... f5 {[%clk 0:00:59.5]} 26. exf6 {[%clk
0:01:54.5]} 26... Bxf6 {[%clk 0:00:59.9]} 27. Rd3 {[%clk 0:01:49.9]} 27... Rh1+
{[%clk 0:00:54.7]} 28. Ka2 {[%clk 0:01:49.2]} 28... Rc1 {[%clk 0:00:50.9]} 29.
c3 {[%clk 0:01:45.5]} 29... Nc7 {[%clk 0:00:32.9]} 30. Bb6 {[%clk 0:01:38]}
30... Nd5 {[%clk 0:00:31.2]} 31. Bxa5 {[%clk 0:01:38]} 31... Bg7 {[%clk
0:00:28.3]} 32. Kb3 {[%clk 0:01:34.8]} 32... Re1 {[%clk 0:00:23.7]} 33. Ng5
{[%clk 0:01:27.5]} 33... Ra1 {[%clk 0:00:22.7]} 34. Bb4 {[%clk 0:01:25]} 34...
Ra8 {[%clk 0:00:15.7]} 35. Ne6 {[%clk 0:01:22.2]} 35... Kf7 {[%clk 0:00:07.2]}
36. Ng5+ {[%clk 0:01:21.8]} 36... Ke8 {[%clk 0:00:06.8]} 37. Bc5 {[%clk
0:01:21.3]} 37... Rb8+ {[%clk 0:00:06.8]} 38. Kc2 {[%clk 0:01:21.1]} 38... Bf6
{[%clk 0:00:06]} 39. Ne4 {[%clk 0:01:19.4]} 39... Kf7 {[%clk 0:00:05.8]} 40. b4
{[%clk 0:01:16.4]} 40... Rh8 {[%clk 0:00:04.2]} 41. c4 {[%clk 0:01:15.7]} 41...
Rh2+ {[%clk 0:00:03.9]} 42. Rd2 {[%clk 0:01:15.2]} 42... Rxd2+ {[%clk
0:00:03.3]} 43. Kxd2 {[%clk 0:01:13.9]} 43... Nc7 {[%clk 0:00:04.2]} 44. Bb6
{[%clk 0:01:08.8]} 44... Ne6 {[%clk 0:00:03.2]} 45. Nxf6 {[%clk 0:01:08.4]}
45... exf6 {[%clk 0:00:03.1]} 46. b5 {[%clk 0:01:08.7]} 46... cxb5 {[%clk
0:00:03.8]} 47. cxb5 {[%clk 0:01:08.2]} 47... Ke7 {[%clk 0:00:04.4]} 48. Kd3
{[%clk 0:01:07.7]} 48... Kd6 {[%clk 0:00:04.6]} 49. Kc4 {[%clk 0:01:07.6]} 49...
g5 {[%clk 0:00:04.4]} 50. f5 {[%clk 0:01:06.4]} 50... Ng7 {[%clk 0:00:03.7]} 51.
g4 {[%clk 0:01:06.2]} 51... Ne8 {[%clk 0:00:03.8]} 52. Bf2 {[%clk 0:01:02.9]}
52... Kd7 {[%clk 0:00:03.9]} 53. Bg3 {[%clk 0:01:03]} 53... Kc8 {[%clk
0:00:03.3]} 54. Kd5 {[%clk 0:01:02.8]} 54... Kd7 {[%clk 0:00:03.5]} 55. b6
{[%clk 0:01:02.4]} 55... Kc8 {[%clk 0:00:01.8]} 56. Kc6 {[%clk 0:01:02.2]} 56...
Nc7 {[%clk 0:00:01]} 57. b7+ {[%clk 0:01:00.8]} 57... Kb8 {[%clk 0:00:01.4]} 58.
Bxc7+ {[%clk 0:01:00.3]} 1-0

[Event "Late-Titled-Tuesday-Blitz-May-28-2024"]
[Site "Chess.com"]
[Date "2024.05.28"]
[Round "5"]
[White "Naruna_Chan"]
[Black "N_Mullodzhanov"]
[Result "1-0"]
[WhiteElo "2266"]
[BlackElo "2484"]
[TimeControl "180+1"]
[EndTime "14:56:06 PDT"]
[Termination "Naruna_Chan won by checkmate"]

1. e4 {[%clk 0:03:00.3]} 1... c5 {[%clk 0:02:57.3]} 2. c3 {[%clk 0:03:00.6]}
2... Nf6 {[%clk 0:02:56]} 3. e5 {[%clk 0:03:01.4]} 3... Nd5 {[%clk 0:02:55.8]}
4. Bc4 {[%clk 0:03:01.9]} 4... Nb6 {[%clk 0:02:55.1]} 5. Bb3 {[%clk 0:03:02.3]}
5... Nc6 {[%clk 0:02:54.3]} 6. Nf3 {[%clk 0:03:02.5]} 6... d5 {[%clk 0:02:53.8]}
7. exd6 {[%clk 0:03:02.5]} 7... Qxd6 {[%clk 0:02:54.1]} 8. d4 {[%clk 0:03:02.8]}
8... c4 {[%clk 0:02:53.3]} 9. Bc2 {[%clk 0:03:02.9]} 9... e6 {[%clk 0:02:53]}
10. O-O {[%clk 0:03:02.5]} 10... Be7 {[%clk 0:02:52.4]} 11. Nbd2 {[%clk
0:03:02.4]} 11... O-O {[%clk 0:02:52]} 12. Qe2 {[%clk 0:03:02.9]} 12... Na5
{[%clk 0:02:45.1]} 13. Ne5 {[%clk 0:02:59.9]} 13... Qc7 {[%clk 0:02:39.5]} 14.
f4 {[%clk 0:02:45.7]} 14... g6 {[%clk 0:02:20.8]} 15. Ne4 {[%clk 0:02:26.1]}
15... Bd7 {[%clk 0:02:11.4]} 16. Rf3 {[%clk 0:02:14.3]} 16... Ba4 {[%clk
0:02:07.5]} 17. Bxa4 {[%clk 0:02:01.6]} 17... Nxa4 {[%clk 0:02:07.3]} 18. Rh3
{[%clk 0:02:01.8]} 18... Kg7 {[%clk 0:01:26.6]} 19. f5 {[%clk 0:01:56.1]} 19...
exf5 {[%clk 0:01:25.2]} 20. Bh6+ {[%clk 0:01:55.7]} 20... Kg8 {[%clk 0:01:24.4]}
21. Bxf8 {[%clk 0:01:55.7]} 21... Rxf8 {[%clk 0:01:21.2]} 22. Ng3 {[%clk
0:01:45.1]} 22... Bd6 {[%clk 0:01:12.2]} 23. Nxf5 {[%clk 0:01:27.6]} 23... gxf5
{[%clk 0:00:35.9]} 24. Qh5 {[%clk 0:01:27.1]} 24... f6 {[%clk 0:00:29.3]} 25.
Rg3+ {[%clk 0:01:23.5]} 25... Kh8 {[%clk 0:00:29.1]} 26. Ng6+ {[%clk 0:01:21.8]}
26... Kg8 {[%clk 0:00:28.9]} 27. Nxf8+ {[%clk 0:01:19.5]} 27... Bxg3 {[%clk
0:00:28.6]} 28. Ne6 {[%clk 0:01:18.4]} 28... Qe7 {[%clk 0:00:19.1]} 29. Qxf5
{[%clk 0:01:10.1]} 29... Bc7 {[%clk 0:00:12.9]} 30. Nxc7 {[%clk 0:01:06.9]}
30... Qxc7 {[%clk 0:00:12.2]} 31. Qxf6 {[%clk 0:01:00.8]} 31... Qf7 {[%clk
0:00:07.7]} 32. Qd8+ {[%clk 0:01:00.2]} 32... Kg7 {[%clk 0:00:08.2]} 33. Qxa5
{[%clk 0:01:00.3]} 33... Nxb2 {[%clk 0:00:08.4]} 34. Qg5+ {[%clk 0:00:55]} 34...
Kf8 {[%clk 0:00:08.2]} 35. Rf1 {[%clk 0:00:55.3]} 35... Nd3 {[%clk 0:00:07.7]}
36. Rxf7+ {[%clk 0:00:55.4]} 36... Kxf7 {[%clk 0:00:08.6]} 37. Qd5+ {[%clk
0:00:55.2]} 37... Kf6 {[%clk 0:00:09.5]} 38. Qxc4 {[%clk 0:00:55.3]} 38... Nf4
{[%clk 0:00:10.4]} 39. Qc7 {[%clk 0:00:51.9]} 39... Ne6 {[%clk 0:00:11.3]} 40.
Qxb7 {[%clk 0:00:51.8]} 40... h5 {[%clk 0:00:12.2]} 41. Qxa7 {[%clk 0:00:52.1]}
41... h4 {[%clk 0:00:13]} 42. Qh7 {[%clk 0:00:49.2]} 42... Kg5 {[%clk
0:00:13.9]} 43. Qe4 {[%clk 0:00:48.3]} 43... Nf4 {[%clk 0:00:14.8]} 44. Qxf4+
{[%clk 0:00:48]} 44... Kxf4 {[%clk 0:00:15.1]} 45. a4 {[%clk 0:00:48.3]} 45...
Ke4 {[%clk 0:00:15.6]} 46. a5 {[%clk 0:00:48.6]} 46... Kd5 {[%clk 0:00:16.5]}
47. a6 {[%clk 0:00:49.5]} 47... Kc6 {[%clk 0:00:17.1]} 48. d5+ {[%clk
0:00:49.8]} 48... Kb6 {[%clk 0:00:18]} 49. d6 {[%clk 0:00:50.3]} 49... Kc5
{[%clk 0:00:17.6]} 50. d7 {[%clk 0:00:50.6]} 50... Kc4 {[%clk 0:00:18.5]} 51. a7
{[%clk 0:00:50.7]} 51... Kb3 {[%clk 0:00:19]} 52. c4 {[%clk 0:00:50.7]} 52... h3
{[%clk 0:00:19.9]} 53. c5 {[%clk 0:00:51.2]} 53... hxg2 {[%clk 0:00:19.8]} 54.
c6 {[%clk 0:00:51.7]} 54... Kc4 {[%clk 0:00:20.6]} 55. c7 {[%clk 0:00:52.1]}
55... Kb5 {[%clk 0:00:21.2]} 56. a8=Q {[%clk 0:00:51.5]} 56... Kb6 {[%clk
0:00:22.1]} 57. c8=Q {[%clk 0:00:51]} 57... Kb5 {[%clk 0:00:22.6]} 58. Qab7+
{[%clk 0:00:51.2]} 58... Ka4 {[%clk 0:00:22]} 59. Qca8# {[%clk 0:00:52.1]} 1-0

[Event "Late-Titled-Tuesday-Blitz-May-28-2024"]
[Site "Chess.com"]
[Date "2024.05.28"]
[Round "5"]
[White "kinga2008"]
[Black "KirAk47"]
[Result "0-1"]
[WhiteElo "2416"]
[BlackElo "2567"]
[TimeControl "180+1"]
[EndTime "14:56:08 PDT"]
[Termination "KirAk47 won by resignation"]

1. e4 {[%clk 0:03:00.1]} 1... c5 {[%clk 0:02:56.5]} 2. Nf3 {[%clk 0:02:59.2]}
2... e6 {[%clk 0:02:56.9]} 3. c4 {[%clk 0:02:53.7]} 3... Nc6 {[%clk 0:02:49.4]}
4. Nc3 {[%clk 0:02:47.7]} 4... Nf6 {[%clk 0:02:36.4]} 5. e5 {[%clk 0:02:47.7]}
5... Ng4 {[%clk 0:02:36.6]} 6. Qe2 {[%clk 0:02:33.9]} 6... Qc7 {[%clk
0:02:36.1]} 7. Nb5 {[%clk 0:02:33.5]} 7... Qb8 {[%clk 0:02:36.2]} 8. d4 {[%clk
0:02:29.9]} 8... cxd4 {[%clk 0:02:35.4]} 9. Nbxd4 {[%clk 0:02:29.2]} 9... Ngxe5
{[%clk 0:02:33.8]} 10. Nxe5 {[%clk 0:02:24.7]} 10... Qxe5 {[%clk 0:02:33.6]} 11.
Qxe5 {[%clk 0:02:24.5]} 11... Nxe5 {[%clk 0:02:33.6]} 12. Bf4 {[%clk 0:02:24.4]}
12... Bb4+ {[%clk 0:02:30.8]} 13. Kd1 {[%clk 0:02:23.6]} 13... Ng6 {[%clk
0:02:24.9]} 14. Bg3 {[%clk 0:02:18]} 14... a6 {[%clk 0:02:17.7]} 15. Bd3 {[%clk
0:02:15.6]} 15... Bc5 {[%clk 0:01:56.1]} 16. Nb3 {[%clk 0:01:58.8]} 16... Be7
{[%clk 0:01:55.8]} 17. h4 {[%clk 0:01:57.3]} 17... d6 {[%clk 0:01:55.6]} 18. Nd2
{[%clk 0:01:52.8]} 18... Ne5 {[%clk 0:01:55.2]} 19. Be2 {[%clk 0:01:46.4]} 19...
Bd7 {[%clk 0:01:55.3]} 20. c5 {[%clk 0:01:41]} 20... Bc6 {[%clk 0:01:53.3]} 21.
cxd6 {[%clk 0:01:38.5]} 21... Bxd6 {[%clk 0:01:54.2]} 22. f3 {[%clk 0:01:32.8]}
22... O-O-O {[%clk 0:01:50.6]} 23. Rc1 {[%clk 0:01:32]} 23... Kb8 {[%clk
0:01:50.7]} 24. b3 {[%clk 0:01:27.3]} 24... Ng6 {[%clk 0:01:42.7]} 25. Bxd6+
{[%clk 0:01:23.9]} 25... Rxd6 {[%clk 0:01:43.6]} 26. Ke1 {[%clk 0:01:23.4]}
26... Rhd8 {[%clk 0:01:35.3]} 27. Nc4 {[%clk 0:01:21.3]} 27... Rd4 {[%clk
0:01:35.5]} 28. Na5 {[%clk 0:01:17.9]} 28... Bb5 {[%clk 0:01:32.1]} 29. Bxb5
{[%clk 0:01:08.5]} 29... axb5 {[%clk 0:01:33]} 30. Kf2 {[%clk 0:00:59.2]} 30...
Nxh4 {[%clk 0:01:28.4]} 31. Rc5 {[%clk 0:00:56.7]} 31... Rd2+ {[%clk 0:01:27.3]}
32. Kg3 {[%clk 0:00:51.9]} 32... Nf5+ {[%clk 0:01:27.4]} 33. Kh3 {[%clk
0:00:49.8]} 33... R8d4 {[%clk 0:00:51.8]} 34. g4 {[%clk 0:00:40.5]} 34... Nd6
{[%clk 0:00:51.9]} 35. Rhc1 {[%clk 0:00:19.5]} 35... Rxa2 {[%clk 0:00:45.4]} 36.
b4 {[%clk 0:00:07.9]} 36... Rxb4 {[%clk 0:00:22]} 37. Rd1 {[%clk 0:00:06.8]}
37... Rxa5 {[%clk 0:00:22.5]} 38. Rxd6 {[%clk 0:00:06.4]} 38... Rc4 {[%clk
0:00:23.1]} 39. Rg5 {[%clk 0:00:03]} 39... g6 {[%clk 0:00:20.9]} 40. Rd7 {[%clk
0:00:03.5]} 40... Rc7 {[%clk 0:00:21.2]} 41. Rd8+ {[%clk 0:00:03.5]} 41... Ka7
{[%clk 0:00:21]} 42. Rc5 {[%clk 0:00:04.1]} 42... Rxc5 {[%clk 0:00:21]} 0-1

[Event "Late-Titled-Tuesday-Blitz-May-28-2024"]
[Site "Chess.com"]
[Date "2024.05.28"]
[Round "5"]
[White "Cambek64"]
[Black "kemelgallo"]
[Result "1-0"]
[WhiteElo "2524"]
[BlackElo "2681"]
[TimeControl "180+1"]
[EndTime "14:56:09 PDT"]
[Termination "Cambek64 won on time"]

1. e4 {[%clk 0:02:51.3]} 1... c5 {[%clk 0:02:58]} 2. Nc3 {[%clk 0:02:51.5]} 2...
Nc6 {[%clk 0:02:54.2]} 3. d3 {[%clk 0:02:49.3]} 3... g6 {[%clk 0:02:51]} 4. Be3
{[%clk 0:02:49.5]} 4... Nd4 {[%clk 0:02:48.6]} 5. Nce2 {[%clk 0:02:47.8]} 5...
Bg7 {[%clk 0:02:47]} 6. c3 {[%clk 0:02:47.8]} 6... Nxe2 {[%clk 0:02:45.3]} 7.
Bxe2 {[%clk 0:02:41.5]} 7... b6 {[%clk 0:02:45.4]} 8. f3 {[%clk 0:02:39]} 8...
d5 {[%clk 0:02:40.7]} 9. Qa4+ {[%clk 0:02:21.1]} 9... Bd7 {[%clk 0:02:39.8]} 10.
Qc2 {[%clk 0:02:20.7]} 10... Rc8 {[%clk 0:02:31.7]} 11. h4 {[%clk 0:02:18.8]}
11... d4 {[%clk 0:02:28.8]} 12. Bd2 {[%clk 0:02:15.7]} 12... Qc7 {[%clk
0:02:27.3]} 13. Kf1 {[%clk 0:02:08.8]} 13... Nf6 {[%clk 0:02:25.7]} 14. g4
{[%clk 0:02:06.8]} 14... O-O {[%clk 0:02:19.4]} 15. cxd4 {[%clk 0:01:49.6]}
15... cxd4 {[%clk 0:02:19.1]} 16. Qxc7 {[%clk 0:01:49.7]} 16... Rxc7 {[%clk
0:02:20]} 17. Bd1 {[%clk 0:01:49.1]} 17... Rfc8 {[%clk 0:02:17.1]} 18. Nh3
{[%clk 0:01:47.3]} 18... h5 {[%clk 0:02:15.9]} 19. g5 {[%clk 0:01:44.7]} 19...
Ne8 {[%clk 0:02:16.1]} 20. Nf2 {[%clk 0:01:41.5]} 20... a5 {[%clk 0:02:11.3]}
21. a4 {[%clk 0:01:38.8]} 21... Nd6 {[%clk 0:02:07.4]} 22. Bb3 {[%clk
0:01:29.2]} 22... Nb7 {[%clk 0:02:05.6]} 23. Bc4 {[%clk 0:01:27.4]} 23... Nc5
{[%clk 0:01:47.7]} 24. b3 {[%clk 0:01:27.4]} 24... Be6 {[%clk 0:01:47.7]} 25.
Rb1 {[%clk 0:01:22.4]} 25... Bxc4 {[%clk 0:01:42.2]} 26. dxc4 {[%clk 0:01:22.6]}
26... e5 {[%clk 0:01:34]} 27. Ke2 {[%clk 0:01:19.9]} 27... Bf8 {[%clk
0:01:30.8]} 28. Nd3 {[%clk 0:01:19.7]} 28... Nd7 {[%clk 0:01:18]} 29. f4 {[%clk
0:01:18.2]} 29... Bd6 {[%clk 0:01:17.8]} 30. Kf3 {[%clk 0:01:16.2]} 30... Re8
{[%clk 0:01:15.3]} 31. Rbe1 {[%clk 0:01:13.3]} 31... Rcc8 {[%clk 0:01:08.8]} 32.
f5 {[%clk 0:01:12.7]} 32... Rb8 {[%clk 0:01:05.9]} 33. f6 {[%clk 0:00:58.3]}
33... Rec8 {[%clk 0:01:01.9]} 34. Rb1 {[%clk 0:00:57.6]} 34... Kf8 {[%clk
0:00:57.6]} 35. Bc1 {[%clk 0:00:52.6]} 35... Ke8 {[%clk 0:00:57.5]} 36. Ke2
{[%clk 0:00:49]} 36... Nf8 {[%clk 0:00:57.8]} 37. Bd2 {[%clk 0:00:45]} 37... Ne6
{[%clk 0:00:57.9]} 38. Rhc1 {[%clk 0:00:44.8]} 38... Kd7 {[%clk 0:00:57.8]} 39.
Be1 {[%clk 0:00:40.4]} 39... Ra8 {[%clk 0:00:50.4]} 40. Bd2 {[%clk 0:00:40.2]}
40... Nc5 {[%clk 0:00:48.6]} 41. Nxc5+ {[%clk 0:00:35.3]} 1-0